[Event "*** SCC Grand Prix: Titled Tuesday Blitz"]
[Site "Chess.com"]
[Date "2020.07.14"]
[Round "5"]
[White "MusicCityMaster"]
[Black "maciek_92"]
[Result "1-0"]
[WhiteElo "2430"]
[BlackElo "2616"]
[TimeControl "180+1"]
[EndTime "10:57:16 PDT"]
[Termination "MusicCityMaster won by resignation"]

1. e4 {[%clk 0:02:57.1]} 1... c5 {[%clk 0:02:59.2]} 2. Nf3 {[%clk 0:02:57.1]}
2... e6 {[%clk 0:02:59]} 3. d4 {[%clk 0:02:57.6]} 3... cxd4 {[%clk 0:02:59.9]}
4. Nxd4 {[%clk 0:02:58]} 4... Nc6 {[%clk 0:03:00.4]} 5. Nc3 {[%clk 0:02:57]}
5... a6 {[%clk 0:02:59.7]} 6. g3 {[%clk 0:02:55.8]} 6... h5 {[%clk 0:02:58]} 7.
h3 {[%clk 0:02:53.7]} 7... Qc7 {[%clk 0:02:55.3]} 8. Bg2 {[%clk 0:02:53.6]} 8...
Nf6 {[%clk 0:02:49.5]} 9. O-O {[%clk 0:02:51.3]} 9... Nxd4 {[%clk 0:02:48.4]}
10. Qxd4 {[%clk 0:02:50.3]} 10... Bc5 {[%clk 0:02:46.9]} 11. Qd3 {[%clk
0:02:47.5]} 11... Be7 {[%clk 0:02:27.1]} 12. Bf4 {[%clk 0:02:43.9]} 12... d6
{[%clk 0:02:24.3]} 13. Rad1 {[%clk 0:02:42.1]} 13... e5 {[%clk 0:02:20]} 14. Bg5
{[%clk 0:02:41.1]} 14... Be6 {[%clk 0:02:19.5]} 15. Bxf6 {[%clk 0:02:39.4]}
15... gxf6 {[%clk 0:02:20.4]} 16. Nd5 {[%clk 0:02:22.5]} 16... Qc5 {[%clk
0:01:54.3]} 17. c3 {[%clk 0:02:18.1]} 17... Rc8 {[%clk 0:01:53.5]} 18. Kh2
{[%clk 0:02:09.5]} 18... Bxd5 {[%clk 0:01:50.3]} 19. Qxd5 {[%clk 0:02:08.7]}
19... Qxd5 {[%clk 0:01:49.8]} 20. Rxd5 {[%clk 0:02:08.6]} 20... h4 {[%clk
0:01:49.4]} 21. g4 {[%clk 0:02:05.3]} 21... Bf8 {[%clk 0:01:47.7]} 22. f4 {[%clk
0:01:51.5]} 22... Ke7 {[%clk 0:01:39.1]} 23. g5 {[%clk 0:01:47.1]} 23... Bg7
{[%clk 0:01:33.9]} 24. fxe5 {[%clk 0:01:30.7]} 24... fxe5 {[%clk 0:01:32.7]} 25.
Bf3 {[%clk 0:01:29.3]} 25... Rc4 {[%clk 0:01:05]} 26. Rfd1 {[%clk 0:01:26.1]}
26... Rd8 {[%clk 0:00:57.2]} 27. R1d3 {[%clk 0:01:19.8]} 27... Bf8 {[%clk
0:00:47.7]} 28. b3 {[%clk 0:01:18.7]} 28... Rc6 {[%clk 0:00:47]} 29. c4 {[%clk
0:01:17.6]} 29... Bg7 {[%clk 0:00:36.5]} 30. Bg4 {[%clk 0:01:12.8]} 30... b6
{[%clk 0:00:34.1]} 31. Rf3 {[%clk 0:01:11.3]} 31... Rg8 {[%clk 0:00:30.7]} 32.
Bh5 {[%clk 0:01:10.7]} 32... Rf8 {[%clk 0:00:30.8]} 33. Kg2 {[%clk 0:01:07.9]}
33... f6 {[%clk 0:00:29.6]} 34. gxf6+ {[%clk 0:00:55.5]} 34... Rxf6 {[%clk
0:00:30.5]} 35. Rdd3 {[%clk 0:00:54.2]} 35... Rc8 {[%clk 0:00:18.2]} 36. Bg4
{[%clk 0:00:47.9]} 36... Rg8 {[%clk 0:00:16.4]} 37. Rf5 {[%clk 0:00:47.5]} 37...
Rxf5 {[%clk 0:00:15.6]} 38. exf5 {[%clk 0:00:37.6]} 38... Bf6 {[%clk 0:00:10.1]}
39. Kf3 {[%clk 0:00:37.6]} 39... Rc8 {[%clk 0:00:08.1]} 40. Ke4 {[%clk
0:00:37.2]} 40... b5 {[%clk 0:00:08.1]} 41. cxb5 {[%clk 0:00:35.6]} 41... axb5
{[%clk 0:00:08.3]} 42. Rd5 {[%clk 0:00:34.5]} 42... b4 {[%clk 0:00:04.7]} 43.
Rb5 {[%clk 0:00:34.6]} 43... Rc1 {[%clk 0:00:04.1]} 44. Rb7+ {[%clk 0:00:34.6]}
44... Kd8 {[%clk 0:00:04.2]} 45. Rxb4 {[%clk 0:00:34]} 45... Rc5 {[%clk
0:00:04.8]} 46. Rb7 {[%clk 0:00:33.1]} 46... d5+ {[%clk 0:00:04.7]} 47. Ke3
{[%clk 0:00:31.3]} 47... Rc3+ {[%clk 0:00:05.1]} 48. Kd2 {[%clk 0:00:31.3]}
48... e4 {[%clk 0:00:05.7]} 49. Rb6 {[%clk 0:00:27.4]} 49... Be5 {[%clk
0:00:05.3]} 50. Re6 {[%clk 0:00:26.3]} 50... Rd3+ {[%clk 0:00:05.9]} 51. Ke2
{[%clk 0:00:26.4]} 51... Bf4 {[%clk 0:00:06.5]} 52. f6 {[%clk 0:00:25.6]} 52...
Rd2+ {[%clk 0:00:05.2]} 53. Ke1 {[%clk 0:00:25.9]} 53... Rxa2 {[%clk 0:00:04.8]}
54. f7 {[%clk 0:00:25.7]} 54... Bd2+ {[%clk 0:00:05.4]} 55. Kd1 {[%clk
0:00:24.6]} 55... Bh6 {[%clk 0:00:06]} 56. Rxh6 {[%clk 0:00:23.9]} 56... Ke7
{[%clk 0:00:05.9]} 57. Rf6 {[%clk 0:00:21.9]} 57... Kf8 {[%clk 0:00:05.7]} 58.
Be6 {[%clk 0:00:21.1]} 58... d4 {[%clk 0:00:05.7]} 59. Rg6 {[%clk 0:00:21.5]}
59... Ra1+ {[%clk 0:00:05.5]} 60. Kc2 {[%clk 0:00:20.5]} 60... Ra2+ {[%clk
0:00:05.9]} 61. Kb1 {[%clk 0:00:20.8]} 61... Rf2 {[%clk 0:00:06.8]} 62. Rg8+
{[%clk 0:00:20.3]} 62... Ke7 {[%clk 0:00:07.7]} 63. Re8+ {[%clk 0:00:20.6]}
63... Kd6 {[%clk 0:00:08.6]} 64. f8=Q+ {[%clk 0:00:21.1]} 64... Rxf8 {[%clk
0:00:09.4]} 65. Rxf8 {[%clk 0:00:21.4]} 65... Kxe6 {[%clk 0:00:10.3]} 66. Rf4
{[%clk 0:00:21.5]} 66... Ke5 {[%clk 0:00:10.7]} 67. Rxh4 {[%clk 0:00:21.3]}
67... d3 {[%clk 0:00:11.3]} 68. Kc1 {[%clk 0:00:21.5]} 68... e3 {[%clk
0:00:10.9]} 69. Kd1 {[%clk 0:00:21.7]} 1-0

[Event "*** SCC Grand Prix: Titled Tuesday Blitz"]
[Site "Chess.com"]
[Date "2020.07.14"]
[Round "5"]
[White "PattyCastillo"]
[Black "chesslh19"]
[Result "0-1"]
[WhiteElo "1934"]
[BlackElo "2142"]
[TimeControl "180+1"]
[EndTime "10:57:16 PDT"]
[Termination "chesslh19 won on time"]

1. d4 {[%clk 0:02:59.1]} 1... Nf6 {[%clk 0:02:59.3]} 2. Nf3 {[%clk 0:02:56.5]}
2... d5 {[%clk 0:02:58.5]} 3. e3 {[%clk 0:02:56.3]} 3... e6 {[%clk 0:02:56]} 4.
Bd3 {[%clk 0:02:55.9]} 4... c5 {[%clk 0:02:56.2]} 5. b3 {[%clk 0:02:55.3]} 5...
Nc6 {[%clk 0:02:54.7]} 6. Bb2 {[%clk 0:02:54.7]} 6... cxd4 {[%clk 0:02:53.4]} 7.
exd4 {[%clk 0:02:54.6]} 7... Be7 {[%clk 0:02:53.5]} 8. O-O {[%clk 0:02:53.4]}
8... O-O {[%clk 0:02:54.1]} 9. Nbd2 {[%clk 0:02:53.3]} 9... b6 {[%clk
0:02:42.3]} 10. a3 {[%clk 0:02:52.3]} 10... Bb7 {[%clk 0:02:40.7]} 11. Re1
{[%clk 0:02:52.2]} 11... Re8 {[%clk 0:02:34]} 12. Ne5 {[%clk 0:02:52]} 12... Bf8
{[%clk 0:02:23.2]} 13. Qf3 {[%clk 0:02:41.5]} 13... Rc8 {[%clk 0:02:08.8]} 14.
Rac1 {[%clk 0:02:40.6]} 14... g6 {[%clk 0:01:16.3]} 15. g4 {[%clk 0:02:09.7]}
15... Bg7 {[%clk 0:01:11.6]} 16. g5 {[%clk 0:02:05.4]} 16... Nxe5 {[%clk
0:01:06.3]} 17. dxe5 {[%clk 0:01:47.3]} 17... Ne4 {[%clk 0:00:59]} 18. Bxe4
{[%clk 0:01:38.3]} 18... Qxg5+ {[%clk 0:00:56.3]} 19. Qg2 {[%clk 0:01:36.2]}
19... Qxd2 {[%clk 0:00:50.9]} 20. Bd3 {[%clk 0:01:32.2]} 20... Bc6 {[%clk
0:00:42.4]} 21. Rcd1 {[%clk 0:01:08.5]} 21... Qf4 {[%clk 0:00:42.1]} 22. Bc1
{[%clk 0:01:06.4]} 22... Qh4 {[%clk 0:00:28.1]} 23. Bg5 {[%clk 0:01:02.1]} 23...
Qh5 {[%clk 0:00:15.2]} 24. Be2 {[%clk 0:00:57.4]} 24... d4 {[%clk 0:00:15.5]}
25. Qg3 {[%clk 0:00:40.6]} 25... Bxe5 {[%clk 0:00:11]} 26. Qxe5 {[%clk
0:00:40.3]} 26... Qh3 {[%clk 0:00:07]} 27. Qg3 {[%clk 0:00:34.8]} 27... Qxg3+
{[%clk 0:00:04.4]} 28. hxg3 {[%clk 0:00:34.3]} 28... Be4 {[%clk 0:00:04.8]} 29.
Bd3 {[%clk 0:00:32.7]} 29... Bxd3 {[%clk 0:00:04.1]} 30. cxd3 {[%clk 0:00:33.1]}
30... e5 {[%clk 0:00:04.5]} 31. Bf6 {[%clk 0:00:32]} 31... Rc6 {[%clk
0:00:02.9]} 32. Bxe5 {[%clk 0:00:31.5]} 32... Rce6 {[%clk 0:00:02.9]} 33. f4
{[%clk 0:00:25]} 33... f6 {[%clk 0:00:03.3]} 34. Bxd4 {[%clk 0:00:24]} 34...
Rxe1+ {[%clk 0:00:03.1]} 35. Rxe1 {[%clk 0:00:24.5]} 35... Rxe1+ {[%clk
0:00:04]} 36. Kf2 {[%clk 0:00:25.1]} 36... Rd1 {[%clk 0:00:03.7]} 37. Bxf6
{[%clk 0:00:25]} 37... Rxd3 {[%clk 0:00:03.5]} 38. b4 {[%clk 0:00:22.4]} 38...
Rxa3 {[%clk 0:00:03.7]} 39. Be7 {[%clk 0:00:22.2]} 39... Kf7 {[%clk 0:00:03.9]}
40. Bd8 {[%clk 0:00:18.3]} 40... Rb3 {[%clk 0:00:03.6]} 41. Bc7 {[%clk
0:00:15.7]} 41... Rxb4 {[%clk 0:00:03.9]} 42. Ke3 {[%clk 0:00:14.6]} 42... Ke6
{[%clk 0:00:04.3]} 43. g4 {[%clk 0:00:13.7]} 43... Rb3+ {[%clk 0:00:04.2]} 44.
Ke4 {[%clk 0:00:12.8]} 44... Rb4+ {[%clk 0:00:04.8]} 45. Kd3 {[%clk 0:00:11.6]}
45... Kd5 {[%clk 0:00:05.2]} 46. Bb8 {[%clk 0:00:08.8]} 46... Rb3+ {[%clk
0:00:04.6]} 47. Kc2 {[%clk 0:00:08]} 47... Ra3 {[%clk 0:00:04.7]} 48. Kb2 {[%clk
0:00:07.9]} 48... Ra4 {[%clk 0:00:04.7]} 49. g5 {[%clk 0:00:06.7]} 49... b5
{[%clk 0:00:04.7]} 50. Kb3 {[%clk 0:00:06.7]} 50... a6 {[%clk 0:00:05]} 51. Bc7
{[%clk 0:00:05.2]} 51... Re4 {[%clk 0:00:04.3]} 52. Kc3 {[%clk 0:00:01.9]} 52...
Re7 {[%clk 0:00:04.2]} 0-1

[Event "*** SCC Grand Prix: Titled Tuesday Blitz"]
[Site "Chess.com"]
[Date "2020.07.14"]
[Round "5"]
[White "OhanyanEminChess"]
[Black "MarceloPlaya"]
[Result "1/2-1/2"]
[WhiteElo "2492"]
[BlackElo "2330"]
[TimeControl "180+1"]
[EndTime "10:57:17 PDT"]
[Termination "Game drawn by repetition"]

1. e4 {[%clk 0:02:59.8]} 1... e6 {[%clk 0:02:59.3]} 2. d4 {[%clk 0:02:57.2]}
2... d5 {[%clk 0:02:58.7]} 3. Nc3 {[%clk 0:02:57.9]} 3... Bb4 {[%clk 0:02:57.9]}
4. e5 {[%clk 0:02:57.3]} 4... c5 {[%clk 0:02:57.6]} 5. a3 {[%clk 0:02:58]} 5...
Bxc3+ {[%clk 0:02:57.3]} 6. bxc3 {[%clk 0:02:58.9]} 6... Ne7 {[%clk 0:02:57.4]}
7. Qg4 {[%clk 0:02:59.4]} 7... Qc7 {[%clk 0:02:56.2]} 8. Qxg7 {[%clk 0:02:58.8]}
8... Rg8 {[%clk 0:02:55.2]} 9. Qxh7 {[%clk 0:02:59.4]} 9... cxd4 {[%clk
0:02:54.6]} 10. Ne2 {[%clk 0:02:59.9]} 10... Nbc6 {[%clk 0:02:54.4]} 11. f4
{[%clk 0:03:00.2]} 11... dxc3 {[%clk 0:02:53.9]} 12. Qd3 {[%clk 0:03:00.8]}
12... Bd7 {[%clk 0:02:53.9]} 13. Nxc3 {[%clk 0:03:01]} 13... a6 {[%clk
0:02:51.4]} 14. Ne2 {[%clk 0:03:01.3]} 14... Rc8 {[%clk 0:02:50.5]} 15. Rg1
{[%clk 0:02:57]} 15... Na5 {[%clk 0:02:44.6]} 16. Nd4 {[%clk 0:02:57]} 16...
Nec6 {[%clk 0:02:41.6]} 17. Bd2 {[%clk 0:02:55.7]} 17... Nc4 {[%clk 0:02:37.8]}
18. Bc3 {[%clk 0:02:54]} 18... N6xe5 {[%clk 0:02:26.9]} 19. fxe5 {[%clk
0:02:52.4]} 19... Nxe5 {[%clk 0:02:26.4]} 20. Qe3 {[%clk 0:02:53]} 20... Qxc3+
{[%clk 0:02:24.7]} 21. Qxc3 {[%clk 0:02:52.4]} 21... Rxc3 {[%clk 0:02:24.4]} 22.
Kd2 {[%clk 0:02:53.3]} 22... Rc8 {[%clk 0:02:13.1]} 23. Be2 {[%clk 0:02:50.9]}
23... Nc4+ {[%clk 0:02:10]} 24. Bxc4 {[%clk 0:02:49.8]} 24... Rxc4 {[%clk
0:02:06.9]} 25. Nf3 {[%clk 0:02:49.9]} 25... f6 {[%clk 0:02:04.8]} 26. c3 {[%clk
0:02:45.5]} 26... Kf7 {[%clk 0:02:02.4]} 27. Raf1 {[%clk 0:02:38.1]} 27... Ke7
{[%clk 0:01:58.1]} 28. Nd4 {[%clk 0:02:33.4]} 28... e5 {[%clk 0:01:50.8]} 29.
Nf5+ {[%clk 0:02:28.4]} 29... Bxf5 {[%clk 0:01:44.1]} 30. Rxf5 {[%clk
0:02:29.3]} 30... Ke6 {[%clk 0:01:43.2]} 31. Rf3 {[%clk 0:02:12.1]} 31... e4
{[%clk 0:01:39.2]} 32. Rh3 {[%clk 0:02:11.1]} 32... Rgc8 {[%clk 0:01:29.1]} 33.
g4 {[%clk 0:02:09.2]} 33... d4 {[%clk 0:01:26.1]} 34. cxd4 {[%clk 0:02:07.8]}
34... Rxd4+ {[%clk 0:01:26]} 35. Ke1 {[%clk 0:02:00.4]} 35... Rc2 {[%clk
0:01:24.4]} 36. Rb3 {[%clk 0:01:53.6]} 36... Rdd2 {[%clk 0:01:19.4]} 37. h4
{[%clk 0:01:51.7]} 37... Re2+ {[%clk 0:01:17.6]} 38. Kf1 {[%clk 0:01:50.1]}
38... e3 {[%clk 0:01:17]} 39. Rb1 {[%clk 0:01:46.4]} 39... Rf2+ {[%clk
0:01:14.3]} 40. Ke1 {[%clk 0:01:46.6]} 40... Rce2+ {[%clk 0:01:12.2]} 41. Kd1
{[%clk 0:01:47.1]} 41... Ke5 {[%clk 0:00:46.4]} 42. g5 {[%clk 0:01:23.8]} 42...
Ke4 {[%clk 0:00:40.9]} 43. g6 {[%clk 0:01:12.6]} 43... Rd2+ {[%clk 0:00:39.6]}
44. Ke1 {[%clk 0:01:11.2]} 44... Kf3 {[%clk 0:00:35.7]} 45. g7 {[%clk
0:01:08.3]} 45... Rde2+ {[%clk 0:00:28.6]} 46. Kd1 {[%clk 0:01:06.8]} 46... Rd2+
{[%clk 0:00:27.4]} 47. Ke1 {[%clk 0:01:06.1]} 47... Rfe2+ {[%clk 0:00:27]} 48.
Kf1 {[%clk 0:01:05.9]} 48... Rg2 {[%clk 0:00:12.5]} 49. g8=Q {[%clk 0:01:00.6]}
49... Rgf2+ {[%clk 0:00:04.2]} 50. Ke1 {[%clk 0:01:00.2]} 50... Rfe2+ {[%clk
0:00:04.3]} 51. Kf1 {[%clk 0:00:02]} 51... Rf2+ {[%clk 0:00:04]} 52. Ke1 {[%clk
0:00:01.7]} 52... Rfe2+ {[%clk 0:00:04]} 53. Kf1 {[%clk 0:00:02.1]} 53... Rf2+
{[%clk 0:00:04.1]} 1/2-1/2

[Event "*** SCC Grand Prix: Titled Tuesday Blitz"]
[Site "Chess.com"]
[Date "2020.07.14"]
[Round "5"]
[White "talaicito"]
[Black "ARTHURMOTIVATOR"]
[Result "1-0"]
[WhiteElo "2185"]
[BlackElo "2326"]
[TimeControl "180+1"]
[EndTime "10:57:18 PDT"]
[Termination "talaicito won by checkmate"]

1. d4 {[%clk 0:03:00.9]} 1... Nf6 {[%clk 0:02:58.8]} 2. Nc3 {[%clk 0:03:01.4]}
2... d5 {[%clk 0:02:56.1]} 3. Bf4 {[%clk 0:03:00.8]} 3... g6 {[%clk 0:02:52.7]}
4. e3 {[%clk 0:03:00.3]} 4... Bg7 {[%clk 0:02:51]} 5. h4 {[%clk 0:03:00.8]} 5...
h6 {[%clk 0:02:45.9]} 6. Nf3 {[%clk 0:02:57.5]} 6... c6 {[%clk 0:02:42.6]} 7.
Ne5 {[%clk 0:02:53.6]} 7... Bf5 {[%clk 0:02:39]} 8. g4 {[%clk 0:02:33.9]} 8...
Be6 {[%clk 0:02:30.4]} 9. Bd3 {[%clk 0:02:30.3]} 9... Nfd7 {[%clk 0:02:22.2]}
10. Nxg6 {[%clk 0:02:18.5]} 10... fxg6 {[%clk 0:02:20.2]} 11. Bxg6+ {[%clk
0:02:19.4]} 11... Bf7 {[%clk 0:02:16.8]} 12. Qd3 {[%clk 0:02:19.4]} 12... Nf6
{[%clk 0:02:10]} 13. O-O-O {[%clk 0:02:13.5]} 13... Nbd7 {[%clk 0:02:02.6]} 14.
g5 {[%clk 0:02:05.1]} 14... Ng8 {[%clk 0:01:50.3]} 15. Qf5 {[%clk 0:01:37.1]}
15... Bxg6 {[%clk 0:01:41.7]} 16. Qxg6+ {[%clk 0:01:38]} 16... Kf8 {[%clk
0:01:41.9]} 17. gxh6 {[%clk 0:01:33.3]} 17... Bxh6 {[%clk 0:00:27.3]} 18. Rdg1
{[%clk 0:01:29.1]} 18... Ndf6 {[%clk 0:00:25.7]} 19. Ne2 {[%clk 0:00:53.6]}
19... e6 {[%clk 0:00:21.6]} 20. Bxh6+ {[%clk 0:00:40.3]} 20... Rxh6 {[%clk
0:00:19.9]} 21. Qg7+ {[%clk 0:00:39.9]} 21... Ke8 {[%clk 0:00:20.1]} 22. Qxb7
{[%clk 0:00:29.4]} 22... Rb8 {[%clk 0:00:15.9]} 23. Qxc6+ {[%clk 0:00:29]} 23...
Qd7 {[%clk 0:00:16.1]} 24. Qxd7+ {[%clk 0:00:23]} 24... Kxd7 {[%clk 0:00:15.7]}
25. Rg7+ {[%clk 0:00:23.3]} 25... Ne7 {[%clk 0:00:14]} 26. Nf4 {[%clk
0:00:23.8]} 26... Rg8 {[%clk 0:00:12.1]} 27. Rhg1 {[%clk 0:00:20.2]} 27... Rxg7
{[%clk 0:00:11.6]} 28. Rxg7 {[%clk 0:00:20.2]} 28... Rxh4 {[%clk 0:00:10.3]} 29.
Rxe7+ {[%clk 0:00:20.2]} 29... Kxe7 {[%clk 0:00:09.3]} 30. Ng6+ {[%clk
0:00:20.7]} 30... Kd6 {[%clk 0:00:07.4]} 31. Nxh4 {[%clk 0:00:21.6]} 31... Ng4
{[%clk 0:00:07.4]} 32. Nf3 {[%clk 0:00:19.3]} 32... Nxf2 {[%clk 0:00:05.7]} 33.
Ne5 {[%clk 0:00:19.4]} 33... Ne4 {[%clk 0:00:05.6]} 34. c4 {[%clk 0:00:17.5]}
34... dxc4 {[%clk 0:00:04.4]} 35. Nxc4+ {[%clk 0:00:17]} 35... Kd5 {[%clk
0:00:04.9]} 36. Nd2 {[%clk 0:00:17]} 36... Nd6 {[%clk 0:00:04.8]} 37. Kc2 {[%clk
0:00:17]} 37... Nb5 {[%clk 0:00:04]} 38. Kd3 {[%clk 0:00:16.7]} 38... Nc7 {[%clk
0:00:04]} 39. e4+ {[%clk 0:00:16.3]} 39... Kc6 {[%clk 0:00:04]} 40. a4 {[%clk
0:00:16.1]} 40... Ne8 {[%clk 0:00:03.9]} 41. b4 {[%clk 0:00:13.1]} 41... Nf6
{[%clk 0:00:04.1]} 42. Kc4 {[%clk 0:00:12.2]} 42... Ng4 {[%clk 0:00:04.3]} 43.
b5+ {[%clk 0:00:10.2]} 43... Kb6 {[%clk 0:00:03.9]} 44. Kb4 {[%clk 0:00:10.1]}
44... Ne3 {[%clk 0:00:04.1]} 45. a5+ {[%clk 0:00:10.2]} 45... Kc7 {[%clk
0:00:04.2]} 46. Nc4 {[%clk 0:00:10.1]} 46... Nc2+ {[%clk 0:00:03.7]} 47. Kc5
{[%clk 0:00:10.2]} 47... Kd7 {[%clk 0:00:02.3]} 48. Ne5+ {[%clk 0:00:08.4]}
48... Kc7 {[%clk 0:00:01.5]} 49. Nc4 {[%clk 0:00:06.5]} 49... Ne3 {[%clk
0:00:02.4]} 50. Nxe3 {[%clk 0:00:05.1]} 50... Kd7 {[%clk 0:00:02.1]} 51. d5
{[%clk 0:00:05.9]} 51... e5 {[%clk 0:00:01.8]} 52. Nc4 {[%clk 0:00:05.3]} 52...
Ke7 {[%clk 0:00:01.4]} 53. Nxe5 {[%clk 0:00:05.5]} 53... Kd8 {[%clk 0:00:01.5]}
54. Nc4 {[%clk 0:00:06.4]} 54... Kc7 {[%clk 0:00:02.1]} 55. e5 {[%clk 0:00:07]}
55... Kd8 {[%clk 0:00:02.5]} 56. b6 {[%clk 0:00:07.3]} 56... Ke7 {[%clk
0:00:03.4]} 57. bxa7 {[%clk 0:00:07.2]} 57... Kd7 {[%clk 0:00:04.3]} 58. a8=Q
{[%clk 0:00:06.7]} 58... Kc7 {[%clk 0:00:05.2]} 59. Qa7+ {[%clk 0:00:06.7]}
59... Kd8 {[%clk 0:00:04.4]} 60. d6 {[%clk 0:00:07.6]} 60... Ke8 {[%clk
0:00:04.9]} 61. Qe7# {[%clk 0:00:07.8]} 1-0

[Event "*** SCC Grand Prix: Titled Tuesday Blitz"]
[Site "Chess.com"]
[Date "2020.07.14"]
[Round "5"]
[White "KyrgyzFighter"]
[Black "AurumO"]
[Result "0-1"]
[WhiteElo "2273"]
[BlackElo "1993"]
[TimeControl "180+1"]
[EndTime "10:57:18 PDT"]
[Termination "AurumO won by checkmate"]

1. c4 {[%clk 0:00:24.2]} 1... e6 {[%clk 0:02:56.4]} 2. Nc3 {[%clk 0:00:25.1]}
2... d5 {[%clk 0:02:57.1]} 3. d4 {[%clk 0:00:25.3]} 3... Nf6 {[%clk 0:02:57.1]}
4. cxd5 {[%clk 0:00:25.8]} 4... exd5 {[%clk 0:02:56.1]} 5. Bg5 {[%clk
0:00:26.4]} 5... c6 {[%clk 0:02:55.3]} 6. e3 {[%clk 0:00:26.4]} 6... Be7 {[%clk
0:02:55]} 7. Bd3 {[%clk 0:00:26.8]} 7... O-O {[%clk 0:02:55.2]} 8. Qc2 {[%clk
0:00:27.2]} 8... h6 {[%clk 0:02:53.9]} 9. Bh4 {[%clk 0:00:27.3]} 9... Re8 {[%clk
0:02:53.4]} 10. Nge2 {[%clk 0:00:27.8]} 10... Nbd7 {[%clk 0:02:53.8]} 11. O-O
{[%clk 0:00:27.8]} 11... Ne4 {[%clk 0:02:46.2]} 12. Bxe7 {[%clk 0:00:27.3]}
12... Qxe7 {[%clk 0:02:46.7]} 13. Bxe4 {[%clk 0:00:27.9]} 13... dxe4 {[%clk
0:02:46.8]} 14. d5 {[%clk 0:00:28.8]} 14... cxd5 {[%clk 0:02:27.1]} 15. Nxd5
{[%clk 0:00:29.7]} 15... Qc5 {[%clk 0:02:15.1]} 16. Qxc5 {[%clk 0:00:29.3]}
16... Nxc5 {[%clk 0:02:16]} 17. Nc7 {[%clk 0:00:30.2]} 17... Bg4 {[%clk
0:02:13.4]} 18. Nxa8 {[%clk 0:00:27.8]} 18... Bxe2 {[%clk 0:02:07.9]} 19. Rfe1
{[%clk 0:00:28.2]} 19... Rxa8 {[%clk 0:02:05]} 20. Rxe2 {[%clk 0:00:28.2]} 20...
Rd8 {[%clk 0:02:04.4]} 21. f3 {[%clk 0:00:28.5]} 21... f5 {[%clk 0:02:02]} 22.
Rc1 {[%clk 0:00:26.7]} 22... b6 {[%clk 0:02:00]} 23. a3 {[%clk 0:00:23.8]} 23...
a5 {[%clk 0:01:58.2]} 24. b4 {[%clk 0:00:21.7]} 24... axb4 {[%clk 0:01:59.1]}
25. axb4 {[%clk 0:00:22.6]} 25... Nd3 {[%clk 0:01:59.6]} 26. Rc6 {[%clk
0:00:23.2]} 26... b5 {[%clk 0:01:41.9]} 27. fxe4 {[%clk 0:00:23.1]} 27... fxe4
{[%clk 0:01:40.5]} 28. Rb6 {[%clk 0:00:23.3]} 28... Rd5 {[%clk 0:01:14]} 29. Re6
{[%clk 0:00:20.2]} 29... Nxb4 {[%clk 0:01:05.4]} 30. Rxe4 {[%clk 0:00:20.3]}
30... Rd1+ {[%clk 0:01:06]} 31. Kf2 {[%clk 0:00:20.8]} 31... Nd3+ {[%clk
0:01:06.1]} 32. Kg3 {[%clk 0:00:21.4]} 32... b4 {[%clk 0:01:04.8]} 33. Rd4
{[%clk 0:00:21.9]} 33... b3 {[%clk 0:00:58.2]} 34. Rd8+ {[%clk 0:00:21.6]} 34...
Kh7 {[%clk 0:00:57.7]} 35. e4 {[%clk 0:00:21.6]} 35... b2 {[%clk 0:00:55.9]} 36.
Rb8 {[%clk 0:00:21.1]} 36... b1=Q {[%clk 0:00:49.9]} 37. Rxb1 {[%clk 0:00:22]}
37... Rxb1 {[%clk 0:00:50.4]} 38. e5 {[%clk 0:00:22.9]} 38... Rb7 {[%clk
0:00:46.8]} 39. Kf3 {[%clk 0:00:22.1]} 39... Re7 {[%clk 0:00:46.1]} 40. e6
{[%clk 0:00:22.1]} 40... Nc5 {[%clk 0:00:44.9]} 41. Re5 {[%clk 0:00:22.2]} 41...
Nxe6 {[%clk 0:00:42.5]} 42. Ke3 {[%clk 0:00:22.7]} 42... Kg6 {[%clk 0:00:40.6]}
43. Kd3 {[%clk 0:00:21.2]} 43... Nf4+ {[%clk 0:00:34.3]} 44. Ke4 {[%clk
0:00:20.9]} 44... Rxe5+ {[%clk 0:00:34.2]} 45. Kxe5 {[%clk 0:00:21.8]} 45...
Nxg2 {[%clk 0:00:34.5]} 46. Ke4 {[%clk 0:00:22.7]} 46... Nh4 {[%clk 0:00:34.5]}
47. Kf4 {[%clk 0:00:22.6]} 47... Kh5 {[%clk 0:00:32.4]} 48. Kg3 {[%clk
0:00:22.6]} 48... g5 {[%clk 0:00:29.4]} 49. h3 {[%clk 0:00:22.6]} 49... Nf5+
{[%clk 0:00:27.9]} 50. Kh2 {[%clk 0:00:22.8]} 50... Kh4 {[%clk 0:00:28.3]} 51.
Kg2 {[%clk 0:00:23.7]} 51... Nd4 {[%clk 0:00:24.3]} 52. Kh2 {[%clk 0:00:23.7]}
52... h5 {[%clk 0:00:24]} 53. Kg2 {[%clk 0:00:24]} 53... g4 {[%clk 0:00:23.3]}
54. hxg4 {[%clk 0:00:24.9]} 54... hxg4 {[%clk 0:00:22]} 55. Kh2 {[%clk
0:00:25.8]} 55... Nf5 {[%clk 0:00:19.1]} 56. Kg2 {[%clk 0:00:26.5]} 56... g3
{[%clk 0:00:19.4]} 57. Kg1 {[%clk 0:00:26.3]} 57... Kh3 {[%clk 0:00:18.4]} 58.
Kh1 {[%clk 0:00:24.9]} 58... Nd4 {[%clk 0:00:15.2]} 59. Kg1 {[%clk 0:00:23.3]}
59... Kg4 {[%clk 0:00:15.6]} 60. Kg2 {[%clk 0:00:23.4]} 60... Ne2 {[%clk
0:00:15.2]} 61. Kf1 {[%clk 0:00:23.8]} 61... Kf3 {[%clk 0:00:16.1]} 62. Ke1
{[%clk 0:00:23.5]} 62... g2 {[%clk 0:00:15.6]} 63. Kd2 {[%clk 0:00:24.4]} 63...
g1=Q {[%clk 0:00:16]} 64. Kd3 {[%clk 0:00:25]} 64... Qd4+ {[%clk 0:00:16.4]} 65.
Kc2 {[%clk 0:00:25.5]} 65... Qc3+ {[%clk 0:00:14.8]} 66. Kb1 {[%clk 0:00:26.4]}
66... Nd4 {[%clk 0:00:13.2]} 67. Ka2 {[%clk 0:00:27.3]} 67... Qb4 {[%clk
0:00:11.3]} 68. Ka1 {[%clk 0:00:26.9]} 68... Ke3 {[%clk 0:00:10]} 69. Ka2 {[%clk
0:00:27.1]} 69... Kd3 {[%clk 0:00:10.6]} 70. Ka1 {[%clk 0:00:27.4]} 70... Kc2
{[%clk 0:00:11.5]} 71. Ka2 {[%clk 0:00:27.7]} 71... Qb2# {[%clk 0:00:12.1]} 0-1